[Event "Titled Tuesday Blitz August 08 Late 2023"]
[White "Santos Flores, Alberto"]
[Black "Kukavica, Tony"]
[WhiteFideId "3601234"]
[BlackFideId "2062542"]
[WhiteElo "2554"]
[BlackElo "2327"]
[Result "1/2-1/2"]
[Round "3"]
[TimeControl "180+1"]
[Date "2023.08.08"]
[WhiteClock "0:00:05"]
[BlackClock "0:00:05"]
[Board "113"]

1. e4 {[%clk 0:03:00]}  c5 {[%clk 0:02:56]} 2. Nf3 {[%clk 0:03:00]}  e6 {[%clk 0:02:56]} 3. g3 {[%clk 0:03:00]}  b6 {[%clk 0:02:51]} 4. Bg2 {[%clk 0:03:00]}  Bb7 {[%clk 0:02:52]} 5. Qe2 {[%clk 0:03:00]}  Nc6 {[%clk 0:02:52]} 6. O-O {[%clk 0:02:59]}  g6 {[%clk 0:02:49]} 7. c3 {[%clk 0:02:56]}  Bg7 {[%clk 0:02:48]} 8. Rd1 {[%clk 0:02:56]}  d6 {[%clk 0:02:48]} 9. d4 {[%clk 0:02:56]}  cxd4 {[%clk 0:02:36]} 10. cxd4 {[%clk 0:02:56]}  Nge7 {[%clk 0:02:36]} 11. Nc3 {[%clk 0:02:48]}  O-O {[%clk 0:02:35]} 12. a3 {[%clk 0:02:06]}  Rc8 {[%clk 0:02:34]} 13. d5 {[%clk 0:02:06]}  exd5 {[%clk 0:02:05]} 14. exd5 {[%clk 0:02:07]}  Ne5 {[%clk 0:01:55]} 15. Nxe5 {[%clk 0:02:05]}  Bxe5 {[%clk 0:01:54]} 16. Bg5 {[%clk 0:02:04]}  Re8 {[%clk 0:01:37]} 17. Rac1 {[%clk 0:01:49]}  Qd7 {[%clk 0:01:32]} 18. Qd2 {[%clk 0:01:41]}  Ba6 {[%clk 0:01:08]} 19. Ne4 {[%clk 0:01:39]}  Rxc1 {[%clk 0:00:41]} 20. Rxc1 {[%clk 0:01:39]}  Rc8 {[%clk 0:00:41]} 21. Nf6+ {[%clk 0:01:29]}  Bxf6 {[%clk 0:00:39]} 22. Bxf6 {[%clk 0:01:30]}  Rxc1+ {[%clk 0:00:20]} 23. Qxc1 {[%clk 0:01:31]}  Qc8 {[%clk 0:00:08]} 24. Qd2 {[%clk 0:01:19]}  Nf5 {[%clk 0:00:05]} 25. Bh3 {[%clk 0:01:17]}  Qc4 {[%clk 0:00:03]} 26. Qe1 {[%clk 0:00:48]}  Qe2 {[%clk 0:00:01]} 27. Qxe2 {[%clk 0:00:44]}  Bxe2 {[%clk 0:00:02]} 28. Bg2 {[%clk 0:00:38]}  Ng7 {[%clk 0:00:02]} 29. Bg5 {[%clk 0:00:30]}  Ne8 {[%clk 0:00:03]} 30. Be3 {[%clk 0:00:25]}  f6 {[%clk 0:00:03]} 31. f4 {[%clk 0:00:25]}  Bb5 {[%clk 0:00:03]} 32. Kf2 {[%clk 0:00:24]}  Bd7 {[%clk 0:00:04]} 33. Bd4 {[%clk 0:00:24]}  Kf7 {[%clk 0:00:04]} 34. Ke3 {[%clk 0:00:24]}  Ke7 {[%clk 0:00:05]} 35. h4 {[%clk 0:00:21]}  Bb5 {[%clk 0:00:05]} 36. Be4 {[%clk 0:00:21]}  Nc7 {[%clk 0:00:05]} 37. h5 {[%clk 0:00:19]}  gxh5 {[%clk 0:00:05]} 38. Kf3 {[%clk 0:00:18]}  Bc4 {[%clk 0:00:05]} 39. Bxh7 {[%clk 0:00:18]}  Bxd5+ {[%clk 0:00:05]} 40. Ke3 {[%clk 0:00:18]}  Bf7 {[%clk 0:00:06]} 41. Be4 {[%clk 0:00:15]}  Nd5+ {[%clk 0:00:05]} 42. Kd2 {[%clk 0:00:12]}  Nc7 {[%clk 0:00:05]} 43. Bf3 {[%clk 0:00:12]}  Ne6 {[%clk 0:00:05]} 44. Be3 {[%clk 0:00:12]}  Nc5 {[%clk 0:00:05]} 45. b4 {[%clk 0:00:11]}  Nd7 {[%clk 0:00:04]} 46. Kc3 {[%clk 0:00:10]}  f5 {[%clk 0:00:03]} 47. a4 {[%clk 0:00:10]}  Nf6 {[%clk 0:00:04]} 48. a5 {[%clk 0:00:08]}  Nd5+ {[%clk 0:00:04]} 49. Kd4 {[%clk 0:00:05]}  Nxe3 {[%clk 0:00:04]} 50. Kxe3 {[%clk 0:00:05]}  bxa5 {[%clk 0:00:04]} 51. bxa5 {[%clk 0:00:05]}  d5 {[%clk 0:00:04]} 52. Kd4 {[%clk 0:00:05]}  Kd6 {[%clk 0:00:05]} 53. Be2 {[%clk 0:00:05]}  Be8 {[%clk 0:00:05]} 54. Bd3 {[%clk 0:00:05]}  Bd7 {[%clk 0:00:04]} 55. Bc2 {[%clk 0:00:05]}  Be6 {[%clk 0:00:05]} 56. Bd1 {[%clk 0:00:05]}  Bf7 {[%clk 0:00:05]} 57. Bf3 {[%clk 0:00:05]}  Be6 {[%clk 0:00:05]} 58. Bxh5 {[%clk 0:00:05]}  Bd7 {[%clk 0:00:05]} 59. Bf3 {[%clk 0:00:05]}  Be6 {[%clk 0:00:05]} 60. Bg2 {[%clk 0:00:05]}  Bf7 {[%clk 0:00:05]} 61. Bf1 {[%clk 0:00:05]}  Be6 {[%clk 0:00:05]} 62. Bd3 {[%clk 0:00:05]}  Bd7 {[%clk 0:00:05]} 63. Be2 {[%clk 0:00:05]}  Be6 {[%clk 0:00:06]} 64. Bh5 {[%clk 0:00:05]}  Bg8 {[%clk 0:00:05]} 65. Bg6 {[%clk 0:00:05]}  Be6 {[%clk 0:00:05]} 66. Bh5 {[%clk 0:00:05]} 1/2-1/2


[Site "https://www.chess.com"]

[Event "Titled Tuesday Blitz August 08 Late 2023"]
[White "Manon-og, Ramon Jr."]
[Black "Keleberda, Tymur"]
[WhiteFideId "5200776"]
[BlackFideId "14174294"]
[WhiteElo "2325"]
[BlackElo "2551"]
[Result "0-1"]
[Round "3"]
[TimeControl "180+1"]
[Date "2023.08.08"]
[WhiteClock "0:00:08"]
[BlackClock "0:01:29"]
[Board "114"]

1. e4 {[%clk 0:03:00]}  c5 {[%clk 0:02:59]} 2. Nf3 {[%clk 0:03:00]}  e6 {[%clk 0:02:59]} 3. g3 {[%clk 0:03:00]}  g6 {[%clk 0:02:56]} 4. Bg2 {[%clk 0:02:59]}  Bg7 {[%clk 0:02:56]} 5. O-O {[%clk 0:02:59]}  Ne7 {[%clk 0:02:57]} 6. d4 {[%clk 0:02:57]}  cxd4 {[%clk 0:02:57]} 7. Nxd4 {[%clk 0:02:58]}  Nbc6 {[%clk 0:02:55]} 8. Nb5 {[%clk 0:02:54]}  O-O {[%clk 0:02:55]} 9. Nd6 {[%clk 0:02:51]}  b6 {[%clk 0:02:52]} 10. Nc3 {[%clk 0:02:45]}  Ba6 {[%clk 0:02:52]} 11. Re1 {[%clk 0:02:45]}  Ne5 {[%clk 0:02:49]} 12. Bg5 {[%clk 0:02:41]}  h6 {[%clk 0:02:44]} 13. Bf4 {[%clk 0:02:41]}  N7c6 {[%clk 0:02:44]} 14. Qd2 {[%clk 0:02:35]}  g5 {[%clk 0:02:44]} 15. Be3 {[%clk 0:02:32]}  Nc4 {[%clk 0:02:36]} 16. Nxc4 {[%clk 0:02:31]}  Bxc4 {[%clk 0:02:37]} 17. Rad1 {[%clk 0:02:27]}  Ne5 {[%clk 0:02:36]} 18. Qd6 {[%clk 0:02:18]}  Rc8 {[%clk 0:02:31]} 19. Qa3 {[%clk 0:02:02]}  Qc7 {[%clk 0:02:24]} 20. Bd4 {[%clk 0:01:45]}  g4 {[%clk 0:02:14]} 21. b3 {[%clk 0:01:42]}  Nf3+ {[%clk 0:02:07]} 22. Bxf3 {[%clk 0:01:42]}  gxf3 {[%clk 0:02:05]} 23. bxc4 {[%clk 0:01:21]}  e5 {[%clk 0:02:00]} 24. Be3 {[%clk 0:01:19]}  Qxc4 {[%clk 0:01:58]} 25. Nd5 {[%clk 0:01:18]}  Qxe4 {[%clk 0:01:53]} 26. Ne7+ {[%clk 0:01:16]}  Kh8 {[%clk 0:01:52]} 27. Nxc8 {[%clk 0:01:11]}  Qg4 {[%clk 0:01:44]} 28. Qd3 {[%clk 0:00:46]}  e4 {[%clk 0:01:31]} 29. Qxd7 {[%clk 0:00:43]}  f5 {[%clk 0:01:30]} 30. Qb5 {[%clk 0:00:18]}  Rxc8 {[%clk 0:01:30]} 31. c4 {[%clk 0:00:08]}  Qh3 {[%clk 0:01:29]} 0-1


[Site "https://www.chess.com"]

[Event "Titled Tuesday Blitz August 08 Late 2023"]
[White "Czerw, Dawid"]
[Black "Sala, Giulia"]
[WhiteFideId "1145746"]
[BlackFideId "2840451"]
[WhiteElo "2538"]
[BlackElo "2325"]
[Result "1-0"]
[Round "3"]
[TimeControl "180+1"]
[Date "2023.08.08"]
[WhiteClock "0:00:02"]
[BlackClock "0:00:19"]
[Board "115"]

1. e4 {[%clk 0:03:00]}  g6 {[%clk 0:03:00]} 2. d4 {[%clk 0:03:00]}  Bg7 {[%clk 0:03:00]} 3. Nc3 {[%clk 0:03:00]}  d6 {[%clk 0:02:54]} 4. h4 {[%clk 0:03:00]}  Nf6 {[%clk 0:02:14]} 5. h5 {[%clk 0:02:59]}  Nxh5 {[%clk 0:02:11]} 6. Rxh5 {[%clk 0:02:58]}  gxh5 {[%clk 0:02:11]} 7. Qxh5 {[%clk 0:02:59]}  Bxd4 {[%clk 0:02:08]} 8. Nf3 {[%clk 0:02:59]}  Bxc3+ {[%clk 0:02:02]} 9. bxc3 {[%clk 0:03:00]}  Nc6 {[%clk 0:02:03]} 10. Bh6 {[%clk 0:02:54]}  Rg8 {[%clk 0:01:53]} 11. Bg5 {[%clk 0:02:50]}  Be6 {[%clk 0:01:50]} 12. Qxh7 {[%clk 0:02:35]}  f6 {[%clk 0:01:51]} 13. Be3 {[%clk 0:02:26]}  Qd7 {[%clk 0:01:51]} 14. Bb5 {[%clk 0:02:22]}  O-O-O {[%clk 0:01:49]} 15. Qh1 {[%clk 0:02:03]}  Rh8 {[%clk 0:01:47]} 16. Qf1 {[%clk 0:01:50]}  Qe8 {[%clk 0:01:44]} 17. Bxa7 {[%clk 0:01:43]}  Qg6 {[%clk 0:01:40]} 18. Bd3 {[%clk 0:01:10]}  Nxa7 {[%clk 0:01:34]} 19. O-O-O {[%clk 0:01:07]}  Nc6 {[%clk 0:01:28]} 20. Bb5 {[%clk 0:01:05]}  Qxe4 {[%clk 0:01:22]} 21. Re1 {[%clk 0:01:04]}  Qd5 {[%clk 0:01:21]} 22. c4 {[%clk 0:01:01]}  Qf5 {[%clk 0:01:15]} 23. Qe2 {[%clk 0:00:49]}  Ne5 {[%clk 0:01:12]} 24. Nd2 {[%clk 0:00:40]}  Rh2 {[%clk 0:01:07]} 25. Qe3 {[%clk 0:00:34]}  Rxg2 {[%clk 0:00:44]} 26. Qa7 {[%clk 0:00:32]}  c6 {[%clk 0:00:43]} 27. Qa8+ {[%clk 0:00:21]}  Kc7 {[%clk 0:00:43]} 28. Qa5+ {[%clk 0:00:22]}  Kd7 {[%clk 0:00:44]} 29. Ba4 {[%clk 0:00:21]}  Rxf2 {[%clk 0:00:42]} 30. Qb6 {[%clk 0:00:20]}  Rxd2 {[%clk 0:00:26]} 31. Qxb7+ {[%clk 0:00:18]}  Ke8 {[%clk 0:00:27]} 32. Kxd2 {[%clk 0:00:17]}  Nxc4+ {[%clk 0:00:27]} 33. Kc1 {[%clk 0:00:16]}  Qf4+ {[%clk 0:00:25]} 34. Kb1 {[%clk 0:00:16]}  Qd2 {[%clk 0:00:19]} 35. Qxc6+ {[%clk 0:00:11]}  Kf7 {[%clk 0:00:19]} 36. Rh1 {[%clk 0:00:10]}  Na3+ {[%clk 0:00:18]} 37. Kb2 {[%clk 0:00:10]}  Qb4+ {[%clk 0:00:18]} 38. Bb3 {[%clk 0:00:10]}  Nc4+ {[%clk 0:00:19]} 39. Kb1 {[%clk 0:00:09]}  Qc3 {[%clk 0:00:17]} 40. Rh7+ {[%clk 0:00:08]}  Kg6 {[%clk 0:00:18]} 41. Qe4+ {[%clk 0:00:06]}  f5 {[%clk 0:00:17]} 42. Qxe6+ {[%clk 0:00:03]}  Kxh7 {[%clk 0:00:18]} 43. Qxf5+ {[%clk 0:00:03]}  Kg7 {[%clk 0:00:19]} 44. Qg4+ {[%clk 0:00:02]}  Kf8 {[%clk 0:00:19]} 45. Bxc4 {[%clk 0:00:02]}  Rb8+ {[%clk 0:00:19]} 46. Bb3 {[%clk 0:00:02]}  Qe1+ {[%clk 0:00:18]} 47. Kb2 {[%clk 0:00:02]}  Qe5+ {[%clk 0:00:19]} 48. Kb1 {[%clk 0:00:03]}  e6 {[%clk 0:00:20]} 49. Qh4 {[%clk 0:00:02]}  Re8 {[%clk 0:00:18]} 50. Qh6+ {[%clk 0:00:02]}  Ke7 {[%clk 0:00:19]} 51. Qh7+ {[%clk 0:00:02]}  Kd8 {[%clk 0:00:19]} 52. Ba4 {[%clk 0:00:02]}  Rf8 {[%clk 0:00:19]} 53. Qd7# {[%clk 0:00:02]} 1-0


[Site "https://www.chess.com"]

[Event "Titled Tuesday Blitz August 08 Late 2023"]
[White "rionelG"]
[Black "ArtemDyachuk"]
[WhiteElo "2313"]
[BlackElo "2530"]
[Result "0-1"]
[Round "3"]
[TimeControl "180+1"]
[Date "2023.08.08"]
[WhiteClock "0:00:00"]
[BlackClock "0:01:23"]
[Board "118"]

1. e4 {[%clk 0:03:00]}  c6 {[%clk 0:02:59]} 2. d4 {[%clk 0:03:00]}  d5 {[%clk 0:03:00]} 3. e5 {[%clk 0:03:01]}  Bf5 {[%clk 0:03:00]} 4. Nf3 {[%clk 0:03:01]}  e6 {[%clk 0:03:00]} 5. Be2 {[%clk 0:03:02]}  Nd7 {[%clk 0:02:58]} 6. O-O {[%clk 0:03:02]}  a6 {[%clk 0:02:59]} 7. Nbd2 {[%clk 0:03:01]}  h6 {[%clk 0:02:59]} 8. Nb3 {[%clk 0:02:58]}  Ne7 {[%clk 0:02:58]} 9. a4 {[%clk 0:02:56]}  Bh7 {[%clk 0:02:56]} 10. Bd2 {[%clk 0:02:50]}  Nf5 {[%clk 0:02:56]} 11. a5 {[%clk 0:02:44]}  Be7 {[%clk 0:02:55]} 12. g4 {[%clk 0:02:41]}  Nh4 {[%clk 0:02:55]} 13. Nxh4 {[%clk 0:02:42]}  Bxh4 {[%clk 0:02:55]} 14. f4 {[%clk 0:02:42]}  O-O {[%clk 0:02:52]} 15. Bb4 {[%clk 0:02:42]}  Be7 {[%clk 0:02:51]} 16. Bxe7 {[%clk 0:02:27]}  Qxe7 {[%clk 0:02:52]} 17. Bd3 {[%clk 0:02:27]}  Bxd3 {[%clk 0:02:44]} 18. Qxd3 {[%clk 0:02:28]}  c5 {[%clk 0:02:43]} 19. dxc5 {[%clk 0:02:20]}  Nxc5 {[%clk 0:02:42]} 20. Qe3 {[%clk 0:02:19]}  Rac8 {[%clk 0:02:41]} 21. Nd4 {[%clk 0:02:18]}  Ne4 {[%clk 0:02:37]} 22. c3 {[%clk 0:02:11]}  Qc5 {[%clk 0:01:51]} 23. Rf3 {[%clk 0:00:00]}  Rce8 {[%clk 0:01:23]} 0-1


[Site "https://www.chess.com"]

[Event "Titled Tuesday Blitz August 08 Late 2023"]
[White "Vafin, Ayrat"]
[Black "Dobrikov, Marco"]
[WhiteFideId "4146530"]
[BlackFideId "12950378"]
[WhiteElo "2302"]
[BlackElo "2528"]
[Result "1-0"]
[Round "3"]
[TimeControl "180+1"]
[Date "2023.08.08"]
[WhiteClock "0:00:30"]
[BlackClock "0:00:19"]
[Board "119"]

1. Nf3 {[%clk 0:03:00]}  g6 {[%clk 0:03:00]} 2. g3 {[%clk 0:03:01]}  Bg7 {[%clk 0:03:01]} 3. d4 {[%clk 0:03:01]}  d6 {[%clk 0:03:02]} 4. Bg2 {[%clk 0:03:02]}  Nf6 {[%clk 0:03:02]} 5. c4 {[%clk 0:03:02]}  O-O {[%clk 0:03:03]} 6. Nc3 {[%clk 0:03:02]}  Na6 {[%clk 0:03:02]} 7. O-O {[%clk 0:03:00]}  c5 {[%clk 0:03:02]} 8. b3 {[%clk 0:02:41]}  Bd7 {[%clk 0:03:00]} 9. Bb2 {[%clk 0:02:40]}  Rc8 {[%clk 0:02:53]} 10. d5 {[%clk 0:02:32]}  Nc7 {[%clk 0:02:52]} 11. a4 {[%clk 0:02:32]}  b6 {[%clk 0:02:52]} 12. Qc2 {[%clk 0:02:29]}  a6 {[%clk 0:02:51]} 13. e4 {[%clk 0:02:29]}  Nfe8 {[%clk 0:02:47]} 14. Rfe1 {[%clk 0:02:25]}  b5 {[%clk 0:02:48]} 15. axb5 {[%clk 0:02:25]}  axb5 {[%clk 0:02:48]} 16. e5 {[%clk 0:02:24]}  dxe5 {[%clk 0:02:45]} 17. Nxe5 {[%clk 0:02:22]}  bxc4 {[%clk 0:02:44]} 18. bxc4 {[%clk 0:02:16]}  Nd6 {[%clk 0:02:44]} 19. Ne4 {[%clk 0:02:09]}  Rb8 {[%clk 0:02:39]} 20. Bc3 {[%clk 0:01:53]}  Nxe4 {[%clk 0:02:34]} 21. Bxe4 {[%clk 0:01:51]}  Ne8 {[%clk 0:02:33]} 22. Ra7 {[%clk 0:01:41]}  Bxe5 {[%clk 0:02:28]} 23. Bxe5 {[%clk 0:01:39]}  Nd6 {[%clk 0:02:26]} 24. Bd3 {[%clk 0:01:27]}  Ra8 {[%clk 0:02:15]} 25. Rxa8 {[%clk 0:01:16]}  Qxa8 {[%clk 0:02:14]} 26. Qd2 {[%clk 0:01:14]}  Qa3 {[%clk 0:01:58]} 27. Qh6 {[%clk 0:01:04]}  Ne8 {[%clk 0:01:50]} 28. Re3 {[%clk 0:00:54]}  Qc1+ {[%clk 0:01:44]} 29. Kg2 {[%clk 0:00:54]}  f6 {[%clk 0:01:42]} 30. Bf4 {[%clk 0:00:51]}  e5 {[%clk 0:00:30]} 31. Rxe5 {[%clk 0:00:50]}  Qxf4 {[%clk 0:00:30]} 32. Qxf4 {[%clk 0:00:45]}  fxe5 {[%clk 0:00:31]} 33. Qxe5 {[%clk 0:00:45]}  Rf6 {[%clk 0:00:29]} 34. Qe7 {[%clk 0:00:39]}  Rf7 {[%clk 0:00:28]} 35. Qxc5 {[%clk 0:00:38]}  Bg4 {[%clk 0:00:27]} 36. f4 {[%clk 0:00:37]}  Kg7 {[%clk 0:00:26]} 37. Qd4+ {[%clk 0:00:36]}  Nf6 {[%clk 0:00:26]} 38. c5 {[%clk 0:00:37]}  Rd7 {[%clk 0:00:25]} 39. d6 {[%clk 0:00:34]}  Be6 {[%clk 0:00:25]} 40. c6 {[%clk 0:00:33]}  Bd5+ {[%clk 0:00:19]} 41. Qxd5 {[%clk 0:00:30]} 1-0


[Site "https://www.chess.com"]

[Event "Titled Tuesday Blitz August 08 Late 2023"]
[White "Grossboss19"]
[Black "Rodriguez Santiago, Jaime"]
[BlackFideId "3100898"]
[WhiteElo "2525"]
[BlackElo "2299"]
[Result "1-0"]
[Round "3"]
[TimeControl "180+1"]
[Date "2023.08.08"]
[WhiteClock "0:00:12"]
[BlackClock "0:00:00"]
[Board "121"]

1. Nf3 {[%clk 0:02:42]}  Nf6 {[%clk 0:02:58]} 2. b3 {[%clk 0:02:42]}  e6 {[%clk 0:02:53]} 3. Bb2 {[%clk 0:02:43]}  d5 {[%clk 0:02:51]} 4. e3 {[%clk 0:02:39]}  c5 {[%clk 0:02:51]} 5. c4 {[%clk 0:02:39]}  Nc6 {[%clk 0:02:50]} 6. cxd5 {[%clk 0:02:39]}  exd5 {[%clk 0:02:49]} 7. d4 {[%clk 0:02:40]}  cxd4 {[%clk 0:02:43]} 8. Nxd4 {[%clk 0:02:38]}  Bb4+ {[%clk 0:02:42]} 9. Bc3 {[%clk 0:02:37]}  Bxc3+ {[%clk 0:02:38]} 10. Nxc3 {[%clk 0:02:37]}  O-O {[%clk 0:02:38]} 11. Be2 {[%clk 0:02:23]}  Qa5 {[%clk 0:02:26]} 12. Qd2 {[%clk 0:02:22]}  Nxd4 {[%clk 0:02:24]} 13. Qxd4 {[%clk 0:02:14]}  Ne4 {[%clk 0:02:15]} 14. b4 {[%clk 0:02:12]}  Qa3 {[%clk 0:02:02]} 15. Nxd5 {[%clk 0:02:00]}  Ng5 {[%clk 0:01:43]} 16. O-O {[%clk 0:01:52]}  Ne6 {[%clk 0:01:37]} 17. Qh4 {[%clk 0:01:46]}  Rd8 {[%clk 0:01:29]} 18. Rfd1 {[%clk 0:01:41]}  Bd7 {[%clk 0:01:26]} 19. Bg4 {[%clk 0:01:25]}  Ba4 {[%clk 0:01:19]} 20. Ne7+ {[%clk 0:01:21]}  Kf8 {[%clk 0:00:59]} 21. Rxd8+ {[%clk 0:01:16]}  Rxd8 {[%clk 0:00:57]} 22. Bxe6 {[%clk 0:01:07]}  Qd3 {[%clk 0:00:22]} 23. Bd5 {[%clk 0:00:51]}  f6 {[%clk 0:00:16]} 24. h3 {[%clk 0:00:33]}  Kxe7 {[%clk 0:00:16]} 25. Bxb7 {[%clk 0:00:32]}  Rd7 {[%clk 0:00:11]} 26. Qe4+ {[%clk 0:00:30]}  Qxe4 {[%clk 0:00:11]} 27. Bxe4 {[%clk 0:00:31]}  Rd2 {[%clk 0:00:10]} 28. Bxh7 {[%clk 0:00:24]}  Rb2 {[%clk 0:00:06]} 29. a3 {[%clk 0:00:24]}  Ke6 {[%clk 0:00:05]} 30. Be4 {[%clk 0:00:23]}  f5 {[%clk 0:00:04]} 31. Bf3 {[%clk 0:00:24]}  g5 {[%clk 0:00:03]} 32. g3 {[%clk 0:00:21]}  Ke5 {[%clk 0:00:02]} 33. h4 {[%clk 0:00:20]}  gxh4 {[%clk 0:00:02]} 34. gxh4 {[%clk 0:00:20]}  f4 {[%clk 0:00:03]} 35. Re1 {[%clk 0:00:13]}  Kf5 {[%clk 0:00:03]} 36. e4+ {[%clk 0:00:13]}  Kg6 {[%clk 0:00:02]} 37. e5 {[%clk 0:00:12]}  Re2 {[%clk 0:00:00]} 38. Rxe2 {[%clk 0:00:12]} 1-0


[Site "https://www.chess.com"]

[Event "Titled Tuesday Blitz August 08 Late 2023"]
[White "ElDivis"]
[Black "The_Straightforward_Rook"]
[WhiteElo "2524"]
[BlackElo "2279"]
[Result "1/2-1/2"]
[Round "3"]
[TimeControl "180+1"]
[Date "2023.08.08"]
[WhiteClock "0:00:05"]
[BlackClock "0:00:18"]
[Board "122"]

1. d4 {[%clk 0:03:00]}  Nf6 {[%clk 0:02:59]} 2. Nf3 {[%clk 0:03:00]}  e6 {[%clk 0:03:00]} 3. e3 {[%clk 0:03:01]}  b6 {[%clk 0:02:59]} 4. Bd3 {[%clk 0:03:02]}  Bb7 {[%clk 0:02:59]} 5. O-O {[%clk 0:03:02]}  d5 {[%clk 0:02:59]} 6. c4 {[%clk 0:03:03]}  Nbd7 {[%clk 0:02:58]} 7. Nc3 {[%clk 0:03:02]}  Be7 {[%clk 0:02:54]} 8. b3 {[%clk 0:02:58]}  O-O {[%clk 0:02:54]} 9. Bb2 {[%clk 0:02:59]}  dxc4 {[%clk 0:02:53]} 10. bxc4 {[%clk 0:02:58]}  c5 {[%clk 0:02:54]} 11. d5 {[%clk 0:02:56]}  exd5 {[%clk 0:02:50]} 12. cxd5 {[%clk 0:02:57]}  Nxd5 {[%clk 0:02:39]} 13. Nxd5 {[%clk 0:02:58]}  Bxd5 {[%clk 0:02:39]} 14. Bxh7+ {[%clk 0:02:59]}  Kxh7 {[%clk 0:02:40]} 15. Qxd5 {[%clk 0:03:00]}  Nf6 {[%clk 0:02:39]} 16. Qf5+ {[%clk 0:02:57]}  Kg8 {[%clk 0:02:37]} 17. Ng5 {[%clk 0:02:55]}  Qd5 {[%clk 0:02:28]} 18. Qxd5 {[%clk 0:02:38]}  Nxd5 {[%clk 0:02:29]} 19. Ne4 {[%clk 0:02:38]}  Rfd8 {[%clk 0:02:29]} 20. Rfd1 {[%clk 0:02:37]}  Nb4 {[%clk 0:02:28]} 21. a3 {[%clk 0:02:33]}  Nd3 {[%clk 0:02:22]} 22. Bc3 {[%clk 0:02:32]}  f5 {[%clk 0:02:21]} 23. Ng3 {[%clk 0:02:30]}  g6 {[%clk 0:02:21]} 24. Rd2 {[%clk 0:02:23]}  Rd7 {[%clk 0:02:17]} 25. Rad1 {[%clk 0:02:22]}  Rad8 {[%clk 0:02:17]} 26. e4 {[%clk 0:02:12]}  f4 {[%clk 0:02:10]} 27. Ne2 {[%clk 0:02:12]}  Kf7 {[%clk 0:02:01]} 28. Nxf4 {[%clk 0:01:58]}  Nxf4 {[%clk 0:01:43]} 29. Rxd7 {[%clk 0:01:59]}  Rxd7 {[%clk 0:01:44]} 30. Rxd7 {[%clk 0:02:00]}  Ne2+ {[%clk 0:01:44]} 31. Kf1 {[%clk 0:02:00]}  Nxc3 {[%clk 0:01:45]} 32. Rxa7 {[%clk 0:02:01]}  Nxe4 {[%clk 0:01:43]} 33. Rb7 {[%clk 0:01:56]}  c4 {[%clk 0:01:43]} 34. Rxb6 {[%clk 0:01:48]}  Bxa3 {[%clk 0:01:43]} 35. Rc6 {[%clk 0:01:46]}  Bb2 {[%clk 0:01:14]} 36. Ke2 {[%clk 0:01:38]}  c3 {[%clk 0:01:13]} 37. f3 {[%clk 0:01:37]}  Ng5 {[%clk 0:01:07]} 38. g3 {[%clk 0:01:11]}  Ne6 {[%clk 0:01:06]} 39. Kd3 {[%clk 0:01:11]}  Kf6 {[%clk 0:01:00]} 40. h4 {[%clk 0:01:03]}  Ke5 {[%clk 0:00:57]} 41. f4+ {[%clk 0:01:00]}  Kd5 {[%clk 0:00:45]} 42. Rc8 {[%clk 0:01:00]}  Nc5+ {[%clk 0:00:38]} 43. Kc2 {[%clk 0:01:00]}  Ne4 {[%clk 0:00:38]} 44. g4 {[%clk 0:00:55]}  Nf2 {[%clk 0:00:34]} 45. h5 {[%clk 0:00:49]}  gxh5 {[%clk 0:00:29]} 46. gxh5 {[%clk 0:00:48]}  Ng4 {[%clk 0:00:26]} 47. Kd3 {[%clk 0:00:47]}  Ke6 {[%clk 0:00:24]} 48. Rc5 {[%clk 0:00:34]}  Kf6 {[%clk 0:00:20]} 49. Ke4 {[%clk 0:00:32]}  Nf2+ {[%clk 0:00:19]} 50. Ke3 {[%clk 0:00:30]}  Ng4+ {[%clk 0:00:19]} 51. Kf3 {[%clk 0:00:31]}  Nh6 {[%clk 0:00:19]} 52. Rc6+ {[%clk 0:00:28]}  Kg7 {[%clk 0:00:19]} 53. Ke4 {[%clk 0:00:25]}  Ng4 {[%clk 0:00:18]} 54. Kd3 {[%clk 0:00:17]}  Nf6 {[%clk 0:00:19]} 55. h6+ {[%clk 0:00:15]}  Kf7 {[%clk 0:00:17]} 56. f5 {[%clk 0:00:12]}  Ng4 {[%clk 0:00:15]} 57. Rc7+ {[%clk 0:00:10]}  Kg8 {[%clk 0:00:16]} 58. h7+ {[%clk 0:00:11]}  Kh8 {[%clk 0:00:16]} 59. Ke4 {[%clk 0:00:08]}  Nf6+ {[%clk 0:00:16]} 60. Kd3 {[%clk 0:00:06]}  Nxh7 {[%clk 0:00:16]} 61. Rc8+ {[%clk 0:00:06]}  Kg7 {[%clk 0:00:16]} 62. Rc7+ {[%clk 0:00:07]}  Kg8 {[%clk 0:00:17]} 63. Rc8+ {[%clk 0:00:07]}  Kg7 {[%clk 0:00:17]} 64. Rc7+ {[%clk 0:00:07]}  Kh6 {[%clk 0:00:18]} 65. Rxc3 {[%clk 0:00:03]}  Bxc3 {[%clk 0:00:17]} 66. Kxc3 {[%clk 0:00:04]}  Kg5 {[%clk 0:00:18]} 67. f6 {[%clk 0:00:05]}  Kxf6 {[%clk 0:00:18]} 1/2-1/2


[Site "https://www.chess.com"]

[Event "Titled Tuesday Blitz August 08 Late 2023"]
[White "Krasteva, Beloslava"]
[Black "Glavina, Pablo"]
[WhiteFideId "2922029"]
[BlackFideId "100234"]
[WhiteElo "2252"]
[BlackElo "2518"]
[Result "0-1"]
[Round "3"]
[TimeControl "180+1"]
[Date "2023.08.08"]
[WhiteClock "0:00:15"]
[BlackClock "0:01:50"]
[Board "125"]

1. c4 {[%clk 0:03:00]}  e5 {[%clk 0:02:59]} 2. Nc3 {[%clk 0:02:57]}  Nf6 {[%clk 0:03:00]} 3. g3 {[%clk 0:02:56]}  Bb4 {[%clk 0:03:00]} 4. Bg2 {[%clk 0:02:55]}  Bxc3 {[%clk 0:03:00]} 5. bxc3 {[%clk 0:02:52]}  O-O {[%clk 0:03:01]} 6. e4 {[%clk 0:02:48]}  c6 {[%clk 0:03:00]} 7. Ne2 {[%clk 0:02:47]}  d5 {[%clk 0:03:00]} 8. cxd5 {[%clk 0:02:45]}  cxd5 {[%clk 0:03:00]} 9. exd5 {[%clk 0:02:43]}  Nxd5 {[%clk 0:03:01]} 10. O-O {[%clk 0:02:43]}  Nc6 {[%clk 0:03:01]} 11. d4 {[%clk 0:02:42]}  Bg4 {[%clk 0:02:58]} 12. h3 {[%clk 0:02:34]}  Nxc3 {[%clk 0:02:56]} 13. Qd2 {[%clk 0:02:19]}  Bxe2 {[%clk 0:02:52]} 14. Re1 {[%clk 0:01:59]}  exd4 {[%clk 0:02:52]} 15. Rxe2 {[%clk 0:01:59]}  Nxe2+ {[%clk 0:02:52]} 16. Qxe2 {[%clk 0:02:00]}  Re8 {[%clk 0:02:49]} 17. Qd1 {[%clk 0:01:59]}  Qa5 {[%clk 0:02:47]} 18. Bd2 {[%clk 0:01:55]}  Qf5 {[%clk 0:02:41]} 19. Rb1 {[%clk 0:01:52]}  Qd7 {[%clk 0:02:25]} 20. Rb5 {[%clk 0:01:45]}  Rad8 {[%clk 0:02:07]} 21. Qb3 {[%clk 0:01:44]}  b6 {[%clk 0:02:05]} 22. Rg5 {[%clk 0:01:19]}  Ne5 {[%clk 0:01:58]} 23. Bf4 {[%clk 0:01:13]}  Ng6 {[%clk 0:01:55]} 24. Bd2 {[%clk 0:01:08]}  Qe6 {[%clk 0:01:54]} 25. Bd5 {[%clk 0:01:06]}  Qf6 {[%clk 0:01:53]} 26. h4 {[%clk 0:00:15]}  Re2 {[%clk 0:01:50]} 0-1


[Site "https://www.chess.com"]